[Event "45th FIDE Olympiad 2024"]
[Site "Budapest"]
[Date "2024.09.12"]
[Round "2.112"]
[White "Brunello, Sabino"]
[Black "Asllani, Muhamet"]
[Result "1-0"]
[ECO "D37"]
[WhiteElo "2511"]
[BlackElo "2191"]
[Annotator "TA"]
[PlyCount "83"]
[EventDate "2024.09.05"]
[EventType "team-tourn"]
[EventCountry "HUN"]
[SourceTitle "playchess.com"]
[Source "ChessBase"]
[SourceQuality "1"]
[WhiteTeam "Italy"]
[BlackTeam "Kosovo"]
[WhiteTeamCountry "ITA"]
[BlackTeamCountry "KOS"]
[TimeControl "40/5400+30:1800+30"]

{[%evp 12,83,34,0,0,0,10,14,50,42,46,34,60,54,64,61,56,43,74,74,73,73,71,59,75,35,107,106,98,98,101,101,100,98,100,100,100,102,110,96,127,72,86,70,77,103,93,88,74,82,775,774,747,755,751,682,726,735,884,883,875,875,839,837,774,638,800,781,1210,1061,1375,1398,1203,1202]} 1. d4 Nf6 2. c4 e6 3. Nf3 d5 4. Nc3 Be7 5. Bf4 O-O 6. e3 c5 7. Rc1 cxd4 8. Nxd4 a6 9. a3 Nc6 {The position is equal.} 10. cxd5 exd5 11. Be2 Nxd4 12. Qxd4 Be6 13. O-O Rc8 14. Rfd1 Qa5 15. h3 h6 16. Qa7 Ne4 {[#]} 17. Be5 $1 {[%cal Bf4e5,Be5d4,Bd4c3][%mdl 32]} Bd6 18. Bd4 Nxc3 (18... Bc5 $1 $14 19. Bxc5 (19. Qxb7 Bxd4 20. Rxd4 Nxc3 $11) 19... Rxc5) 19. Bxc3 $16 Qc7 20. Qd4 {[%csl Gc3][%cal Rd4g7]} f6 {[%cal Bf7f6,Bf6f5][%mdl 32]} 21. Bg4 f5 22. Bf3 Rfd8 23. g3 (23. Bxd5 $2 {loses.} Bh2+ 24. Kh1 Rxd5 $19 (24... Bxd5 $2 25. Qxg7+ Qxg7 26. Bxg7 $19)) 23... Bf8 {[%cal Bd6f8,Bf8e7,Be7c5][%mdl 32]} 24. Kg2 Qf7 25. h4 (25. Ba5 {simplifies} Re8 26. Rxc8 Rxc8 27. Qxd5 Bxd5 28. Bxd5 Qxd5+ 29. Rxd5 Rc5 30. Rxc5 Bxc5 31. Bc3) 25... Be7 26. Qb6 (26. Bh5 $142 Qf8 27. Qb6) 26... Bc5 27. Qa5 f4 $1 28. exf4 {Strongly threatening Be5.} Qf5 {[#]} 29. Rh1 {Against Qh3+. Active counter play!} d4 30. Bb4 Bd5 $2 {[%mdl 8192] Black cannot hold the game after this.} 31. Rxc5 $18 {White is clearly winning.} ({Not} 31. Bxc5 Bxf3+ 32. Kxf3 Qd5+ 33. Kg4 Qe6+ 34. f5 h5+ 35. Kh3 (35. Kxh5 $2 Qxf5#) 35... Qxf5+ 36. Kg2 Rd5 $16) 31... Bxf3+ 32. Kxf3 Qd3+ 33. Kg2 {[%cal Bf3g2,Bg2h2,Bh2h3][%mdl 32]} Qe4+ 34. Kh2 Qe2 35. Rxc8 Qxf2+ 36. Kh3 Rxc8 37. Qd5+ Kh8 38. Re1 b6 39. Qd7 Qc2 40. Qxd4 {[%cal Od4d7] Hoping for Qd7!} Qf5+ 41. g4 Qf7 42. h5 {Weighted Error Value: White=0.14 (very precise) /Black=0.13 (very precise) .  Loses game:     	---       	Black=1      Mistake:       	White=1     	Black=1      Inaccurate:     	White=1     	Black=4      OK:         	White=13    	Black=8      Best:        	White=2     	Black=1      Strong:       	White=1     	Black=1} 1-0

[Event "45th FIDE Olympiad 2024"]
[Site "Budapest"]
[Date "2024.09.12"]
[Round "2.113"]
[White "Stremavicius, Titas"]
[Black "Atabayev, Saparmyrat"]
[Result "1/2-1/2"]
[ECO "D02"]
[WhiteElo "2527"]
[BlackElo "2516"]
[Annotator "TA"]
[PlyCount "237"]
[EventDate "2024.09.05"]
[EventType "team-tourn"]
[EventCountry "HUN"]
[SourceTitle "playchess.com"]
[Source "ChessBase"]
[SourceQuality "1"]
[WhiteTeam "Lithuania"]
[BlackTeam "Turkmenistan"]
[WhiteTeamCountry "LTU"]
[BlackTeamCountry "TKM"]
[TimeControl "40/5400+30:1800+30"]

{[%evp 9,237,26,23,-7,-3,0,-9,0,0,0,0,0,0,0,0,-66,-32,-61,-24,-38,0,0,0,0,0,0,0,0,-1,0,0,-35,-48,-88,-88,-85,-85,-116,-108,-122,-118,-123,-97,-147,-52,-43,-37,-48,-39,-59,0,-68,-62,-191,-165,-187,-168,-217,-229,-246,-193,-174,-169,-167,-164,-151,-157,-133,-88,-93,-101,-89,-70,-51,-37,-56,0,-62,-68,-97,-97,-152,-122,-177,-141,-132,-99,-135,-99,-99,-81,-174,-174,-263,-172,-159,-86,-93,-86,-86,-86,-283,-284,-284,-287,-322,-225,-182,-180,-330,-225,-415,-218,-464,-242,-233,-281,-456,-456,-456,-456,-456,-331,-397,-297,-459,-217,-217,-217,-217,-217,-218,-220,-221,-220,-283,-285,-465,-465,-410,-416,-1075,-1054,-1523,-1368,-1605,-1564,-1760,-1758,-29960,-12797,-5057,-327,-592,0,-588,-398,-588,0,-584,-592,-592,-592,-592,-588,-588,-484,-476,-232,-476,0,-456,0,-20,0,-20,-20,-20,-20,-20,-20,-39,0,-20,-20,-20,-20,-51,0,-20,-20,-20,0,0,0,-20,0,-20,-8,-20,-20,-20,-20,-20,-16,-16,0,-16,-16,-16,-20,-20,-20,-27,-27,-27,0,-16,-16,-16,0,0,0,0,0,0,0,0,0,0]} 1. Nf3 d5 2. g3 Nf6 3. Bg2 Bg4 4. d4 Nbd7 5. c4 c6 6. h3 Bxf3 7. Bxf3 dxc4 8. Nd2 Nb6 9. e3 e5 10. dxe5 Nfd7 11. e6 fxe6 12. Qc2 (12. O-O $11) 12... Ne5 13. Be4 {[%cal Oe1g1]} Qf6 14. O-O {[%cal Oa2a4]} Bc5 15. Kg2 {[%cal Ob2b3]} (15. Bxh7 $2 Qh6 $19) 15... O-O-O 16. Rb1 {[%cal Ob2b4]} Bb4 17. a3 Bxd2 18. Bxd2 {[%cal Od2c3]} Nd3 19. Bc3 {Against Qe5} e5 20. Ba5 {A strong pair of Bishops.} Nc5 21. Bb4 Nxe4 22. Qxe4 Qe6 23. Rbc1 Qd5 24. Qf3 Na4 25. e4 Qe6 26. Qe2 (26. Rc2 $142) 26... Rd3 (26... Rd4 $1 $17 27. Bc3 Nxc3 28. Rxc3 Rhd8) 27. b3 $1 $15 Rxb3 28. Rxc4 Rd8 $36 {[%mdl 2048] Black has good play.} 29. Rfc1 {[%cal Oc4c6]} Kb8 (29... Qf7 $15) 30. Qc2 (30. Rd1 $1 $11 Rxd1 31. Qxd1) 30... Rdd3 {[%cal Od3g3]} 31. Rd1 {[#]} (31. Be1 $15 Nb6 32. Rc3 Rdxc3 33. Bxc3) 31... Rxg3+ $3 $19 {[%mdl 512]} 32. fxg3 Rb2 33. Rd2 (33. Rd8+ $142 Kc7 34. Ba5+ b6 35. Rd2 (35. Bxb6+ $2 axb6 36. Rd2 Rxc2 $19) 35... Rxc2 36. Rdxc2) 33... Rxc2 34. Rcxc2 Qg6 35. Kh2 Qxe4 36. Bd6+ Kc8 37. Re2 Qg6 38. Bxe5 Nb6 39. Rf2 Nd7 {Wards off Rf8+} 40. Bb2 Kc7 41. Rce2 Kd8 {Repels Re7} 42. Rd2 Kc7 43. Rde2 $1 Kb6 44. Re7 {[%csl LRd7,LRg7]} Qd6 45. Rxg7 {[#]} (45. Ree2 $142) 45... Nc5 $1 $17 46. Rg4 {Prevents Ne4} (46. Rg2 $17) 46... Nd3 47. Rd4 Qc5 48. Re2 Nxb2 49. Rxb2+ {[%mdl 4096] Endgame. KQ-KRR} Kc7 50. Rf4 (50. Rh4 $17 h5 (50... Qxa3 51. Rxh7+ Kd6 52. Rhxb7 $18) 51. a4) 50... b5 $1 $19 51. a4 (51. Rf3 {was worth a try.}) 51... Qc3 52. Rfb4 a6 (52... a5 $142 53. R4b3 Qc1 54. axb5 a4) 53. R4b3 Qe1 54. axb5 axb5 55. Rc2 $2 (55. g4 $17) 55... b4 56. Rf3 Qe4 57. Rcf2 Kb6 58. Rf4 Qe1 59. h4 (59. Rf1 {was necessary.} Qc3 60. R1f3 Qc2+ 61. Rf2) 59... c5 60. Rf7 $2 (60. Rf1 Qe5 61. Rf6+ Kb5 62. R6f5) 60... Kb5 (60... c4 61. R2f5 Qd2+ 62. Rf2 $19) (60... b3 $142 61. R2f6+ Ka5 62. Rxh7 Qe2+ 63. Kh3 Qb5) 61. R2f4 $2 (61. Rf1 {was forced.} Qd2+ 62. R1f2) 61... Qe2+ (61... c4 $142 62. Rf1 Qxf1 63. Rxf1 b3) 62. Rf2 Qe4 63. R7f4 $2 (63. R2f4 {is the only way for White.} Qc2+ 64. Rf2) 63... Qe1 64. Rf1 Qe6 65. Rf6 Qa2+ (65... Qd5 66. Rf8 $19) 66. R1f2 Qa3 67. Rf8 (67. Rf7 $142) 67... Qd3 (67... b3 $142 68. Rb8+ Kc4) 68. R2f3 Qd6 69. R3f6 Qd5 {White must now prevent ...b3.} 70. Rf5 Qa2+ 71. Rf2 Qa5 72. Rb8+ Kc4 73. Rf4+ $2 (73. Rb7) 73... Kb3 74. Rf3+ Ka4 75. Rf7 (75. Rff8 $142 Qc7 76. Ra8+ Kb5 77. Rab8+ Ka6 78. Rbc8) 75... c4 76. Rxh7 c3 77. Rc8 {Prevents Qc5} Kb3 78. Rhc7 Qd5 79. Rc5 Qd2+ 80. Kh3 Qd7+ $2 (80... c2 {[%cal Od2c3] Hoping for ...Qc3!} 81. Kg4 Qc3 82. Rxc3+ bxc3) 81. Kg2 $2 (81. g4 Qd3+ 82. Kg2) 81... Qd2+ $2 (81... Kc2 $19 {Strongly threatening ...Qd2+.} 82. h5 Kd1) 82. Kf3 $2 {[%mdl 8192]} (82. Kh3 $1 $11) 82... Qd3+ 83. Kf4 (83. Kg2 $142 Qd2+ 84. Kf3) 83... Qd2+ 84. Kf3 Kc2 85. h5 Kd1 {And now ...b3 would win.} 86. Ke4 Ke2 87. g4 Qe3+ 88. Kf5 Qd3+ (88... Kd2 $142 {...b3 would now be deadly.} 89. Kf6 Qf4+ 90. Ke7 Qe4+ (90... Qxg4 $2 91. R8c6 $19) 91. Kd6 Qf4+ (91... Qxg4 $2 92. R8c6 $19) 92. Kd5 b3 (92... Qxg4 $2 93. h6 $19) 93. Rxc3 Qxg4) 89. Kg5 $2 (89. Ke5 {was the only chance.} Qd7 90. h6 (90. g5 $2 b3 $19)) 89... Qe3+ 90. Kf5 $1 {Re5 would kill now.} Kf3 $2 (90... Kd2 $19 {Threatens to win with ...b3.} 91. Kf6 Qf4+ 92. Ke7 Qxg4 (92... Qe4+ $2 93. Kd6 $19)) 91. Rc4 Qd3+ {[%mdl 1024] Black has compensation.} (91... c2 $5 92. Rxc2 Qf4+ 93. Kg6 Qxg4+ 94. Kf6 Qf4+ (94... Qxh5 95. R2c5 $17) 95. Kg6 b3 96. R2c3+ Kf2 $17 (96... Kg4 97. R8c4)) 92. Kg5 Qd5+ 93. Kf6 Qd6+ 94. Kg7 Qd7+ 95. Kf6 {[%cal Og4g5]} Qd6+ 96. Kg7 Qe7+ 97. Kg6 Qe6+ 98. Kg7 {[%cal Oh5h6] [#]} c2 99. Rxc2 Qxg4+ 100. Kh6 Qe6+ 101. Kg5 Qd5+ 102. Kg6 Qd6+ 103. Kg5 Qf4+ 104. Kg6 b3 105. R2c3+ $1 Kf2 ({Weaker is} 105... Kg4 106. R8c4 (106. Rxb3 Qf5+ 107. Kg7 Qxc8 108. Rb4+ Kxh5 109. Rb5+ Kg4 110. Rb4+ Kf5 111. Rb5+ Ke6 112. Rg5 Qe8 113. Rg6+ Kf5 114. Rf6+ Kg5 115. Rf7 Qd8 116. Rf1 Qd4+ 117. Kf8 Kg6 118. Ke7 Qe4+ 119. Kd7 Qd3+ 120. Ke6 Qxf1 121. Kd5 Qd3+ 122. Kc6 Qc4+ 123. Kb7 Kf6 124. Kb6 Ke7 125. Ka5 Kd6 126. Kb6 Qb4+ 127. Ka6 Kc7 128. Ka7 Qb7#) 106... b2 107. Rxf4+ Kxf4 108. Rb3 Ke5 109. h6 (109. Rxb2 Kd4 110. h6 Kc3 111. Rg2 Kd4 112. h7 Ke4 113. h8=Q Kf3 114. Qh3+ Ke4 115. Rd2 Kf4 116. Rd4+ Ke5 117. Qe3#) 109... Kd4 110. h7 (110. Rxb2 Kc3 111. Rb7 Kd2 112. h7 Kd3 113. Rd7+ Ke2 114. h8=Q Kf2 115. Qc3 Kf1 116. Qc2 Kg1 117. Rd1#)) 106. h6 $1 {Active counter play!} Qg4+ 107. Kf6 Qh5 108. Kg7 Qg5+ 109. Kh7 Qf5+ 110. Kg7 {[%cal Oc8f8] White threatens Rf8! and mate. Chess con chili.} Qe5+ 111. Kg8 b2 112. Rc2+ $1 Kg1 113. Rc1+ {The position is equal.} bxc1=Q 114. Rxc1+ $11 {KQ-KR} Kg2 115. h7 $1 Qg5+ 116. Kf7 Qh6 117. Rh1 Kxh1 118. Kg8 Qxh7+ 119. Kxh7 {Whites escaped into a draw.   Weighted Error Value: White=0.31/Black=0.18 (very precise) .  Loses game:     	White=2     	---        Missed win:     	---       	Black=1      Mistake:       	White=18    	Black=8      Inaccurate:     	White=6     	Black=8      OK:         	White=31    	Black=43     Best:        	White=16    	Black=7      Strong:       	White=7     	Black=1      Brilliant:      	---       	Black=1} 1/2-1/2

[Event "45th FIDE Olympiad 2024"]
[Site "Budapest"]
[Date "2024.09.12"]
[Round "2.114"]
[White "Annaberdiyev, Meylis"]
[Black "Pultinevicius, Paulius"]
[Result "0-1"]
[ECO "B85"]
[WhiteElo "2431"]
[BlackElo "2587"]
[Annotator "TA"]
[PlyCount "132"]
[EventDate "2024.09.05"]
[EventType "team-tourn"]
[EventCountry "HUN"]
[SourceTitle "playchess.com"]
[Source "ChessBase"]
[SourceQuality "1"]
[WhiteTeam "Turkmenistan"]
[BlackTeam "Lithuania"]
[WhiteTeamCountry "TKM"]
[BlackTeamCountry "LTU"]
[TimeControl "40/5400+30:1800+30"]

{[%evp 25,132,0,34,24,49,7,5,20,21,0,0,0,0,0,0,-26,-27,-20,-26,-23,-19,-18,-5,-6,-7,-35,-20,-19,-10,-11,-14,-56,0,0,0,0,0,0,0,0,0,0,0,0,0,0,0,0,0,0,0,0,0,0,0,0,0,0,0,-43,-42,-48,-42,-82,-42,-70,-42,-77,-89,-87,-43,-54,-65,-55,-45,-35,-34,-171,-213,-284,-160,-160,-160,-198,-185,-184,-184,-242,-124,-551,-927,-1688,-971,-5130,-4937,-4929,-4918,-29964,-29966,-29956,-29964,-29960,-29962,-12844,-4120,-29978,-29979,-29978,-29978]} 1. e4 c5 2. Nf3 Nc6 3. Nc3 e6 4. d4 cxd4 5. Nxd4 d6 6. Be3 Nf6 7. Be2 Be7 8. O-O O-O 9. f4 a6 10. Qe1 Bd7 11. Qg3 Qc7 12. Kh1 b5 13. a3 Rab8 {[#]} 14. e5 $1 {And now Nxc6 would win.} Ne8 15. Bd3 f5 {[%cal Rd6e5]} 16. exf6 {The position is equal.} Nxf6 17. Nxc6 Qxc6 18. Bd4 Rf7 19. Rae1 Rbf8 20. Bxf6 Bxf6 21. Ne4 $1 Be7 {[%cal Oe6e5]} 22. Ng5 Bxg5 23. Qxg5 Qb6 24. c3 Rf6 25. Rf3 h6 26. Qg3 Bc6 27. Rff1 Qb7 28. Kg1 Qf7 ({Black should play} 28... Bd5 $15) 29. Qe3 $11 Bd5 30. g3 Qc7 31. Be4 Bb3 32. Bb1 a5 33. Qd3 Qc5+ 34. Rf2 g6 {[%cal Bg7g6,Bg6g5][%mdl 32]} 35. Qe3 Qxe3 36. Rxe3 g5 {[%cal Rg5f4]} 37. Bd3 Bc4 38. Bxc4 bxc4 {[%mdl 4096] Endgame. KRR-KRR} 39. Rfe2 Kf7 40. fxg5 hxg5 41. Re4 d5 42. Rg4 Rf5 43. h4 Rg8 44. Kg2 a4 45. Re1 Kf6 46. hxg5+ Rfxg5 47. Rf1+ Ke7 48. Rxg5 Rxg5 $15 {KR-KR} 49. Rh1 Rg8 50. Rh7+ Kd6 51. Rb7 {Prevents Rb8. Black keeps a firm grip on the game.} (51. Kf3 $15) 51... e5 $19 52. Rb4 {[#]} Ra8 (52... Rf8 $1 $19 {...e4 would now be deadly.} 53. g4 (53. Rxa4 $2 {is the wrong capture.} e4 $19) 53... Kc5 54. Rxa4 d4 55. cxd4+ exd4 56. Ra5+ Kc6) 53. Kf3 Kc5 54. Ke3 d4+ 55. cxd4+ exd4+ 56. Kd2 Kd5 ({Black should try} 56... Rh8 $19 57. Rxa4 Rh2+ 58. Kc1 Kd5 (58... d3 59. Ra8 $17)) 57. g4 $2 {[%mdl 8192]} (57. Rb5+ $17 {is a better chance.} Ke4 58. Rh5) 57... Rh8 58. Rxa4 Ke4 {( -> ...Rh2+)} 59. Rxc4 Rh2+ 60. Kc1 {[#]} Ke3 $1 61. b4 d3 62. Rc3 Ke2 63. Kb2 d2 64. Rc2 Kd3 65. Rxd2+ Rxd2+ 66. Kb3 Kd4 {Weighted Error Value: White=0.42/Black=0.10 (very precise) .  Loses game:     	White=1     	---        Mistake:       	White=1     	Black=3      Inaccurate:     	White=10    	Black=2      OK:         	White=14    	Black=14     Best:        	White=2     	Black=4      Strong:       	White=1     	---} 0-1

[Event "45th FIDE Olympiad 2024"]
[Site "Budapest"]
[Date "2024.09.12"]
[Round "2.115"]
[White "Laurusas, Tomas"]
[Black "Hommadov, Amanmuhammet"]
[Result "1-0"]
[ECO "E90"]
[WhiteElo "2569"]
[BlackElo "2181"]
[Annotator "TA"]
[PlyCount "93"]
[EventDate "2024.09.05"]
[EventType "team-tourn"]
[EventCountry "HUN"]
[SourceTitle "playchess.com"]
[Source "ChessBase"]
[SourceQuality "1"]
[WhiteTeam "Lithuania"]
[BlackTeam "Turkmenistan"]
[WhiteTeamCountry "LTU"]
[BlackTeamCountry "TKM"]
[TimeControl "40/5400+30:1800+30"]

{[%evp 11,93,31,26,46,37,27,39,37,47,38,43,37,63,59,70,70,64,75,70,72,66,63,75,64,66,78,70,66,71,64,73,80,70,35,48,44,67,57,54,52,50,56,52,25,33,18,64,32,64,56,66,60,69,39,37,62,77,75,72,90,79,16,33,28,22,14,21,30,15,11,16,13,60,61,105,24,17,15,45,52,58,58,838,828]} 1. d4 Nf6 2. c4 g6 3. Nc3 Bg7 4. e4 O-O 5. Nf3 d6 6. Bd3 Bg4 7. Be2 Bxf3 8. Bxf3 {Black must now prevent e5.} Nfd7 9. Be3 {White is slightly better.} Nb6 10. Be2 Nc6 11. O-O Na5 12. b3 c5 13. Rc1 cxd4 14. Bxd4 Bh6 {Black is weak on the light squares} 15. f4 e5 16. Be3 Bxf4 17. Bxf4 exf4 18. Rxf4 Nc6 19. Qd2 Qe7 20. Kh1 Rad8 {[%cal Ba8d8,Bd8d7,Bd7f7][%mdl 32]} 21. Rcf1 f6 22. Bd3 Kg7 23. Rh4 Rd7 24. Bb1 Qe5 25. Nd5 Kg8 26. Rhf4 {[%cal Bh4f4,Bf4f3,Bf3h3][%mdl 32]} Rdf7 27. Qf2 Kg7 28. Rf3 Nc8 (28... Nd7 $11) 29. Rh3 Kh8 30. Rd1 Re8 31. Rf3 Kg7 32. b4 {[%cal Bb3b4,Bb4b5][%mdl 32]} N8e7 33. a3 a5 34. Nc7 Rd8 35. b5 Rc8 36. Qb6 {White has more active pieces. The black rooks are passive.} ({White should try} 36. b6 $16) 36... Nd4 $1 $11 37. Qxd4 Rxc7 38. Qb6 Nc8 39. Qxa5 Rfe7 40. Bd3 Qd4 41. h3 Qc5 (41... Nb6 $1 $11) 42. Qc3 $36 {[%mdl 2048] White fights for an advantage.} Re6 {[#]} 43. Bf1 (43. a4 $1 $16) 43... Nb6 $1 $11 44. Rd4 Nd7 45. Rd5 Qa7 {[%cal Oc7c5]} 46. Qb4 Ne5 $2 {[%mdl 8192] [#]} (46... Qb6 $14) 47. b6 {Weighted Error Value: White=0.11 (very precise) /Black=0.11 (very precise) .  Loses game:     	---       	Black=1      Mistake:       	White=2     	Black=2      Inaccurate:     	White=4     	Black=4      OK:         	White=14    	Black=6      Best:        	White=4     	Black=1      Strong:       	---       	Black=2} 1-0

[Event "45th FIDE Olympiad 2024"]
[Site "Budapest"]
[Date "2024.09.12"]
[Round "2.116"]
[White "Shirliyev, Allayar"]
[Black "Pidluznij, Gleb"]
[Result "0-1"]
[ECO "C58"]
[WhiteElo "2200"]
[BlackElo "2425"]
[Annotator "TA"]
[PlyCount "104"]
[EventDate "2024.09.05"]
[EventType "team-tourn"]
[EventCountry "HUN"]
[SourceTitle "playchess.com"]
[Source "ChessBase"]
[SourceQuality "1"]
[WhiteTeam "Turkmenistan"]
[BlackTeam "Lithuania"]
[WhiteTeamCountry "TKM"]
[BlackTeamCountry "LTU"]
[TimeControl "40/5400+30:1800+30"]

{[%evp 14,104,46,31,20,14,24,31,18,40,52,65,66,38,75,62,90,61,75,76,74,92,79,38,51,42,39,27,51,-51,-32,-73,-14,-52,-17,-63,-48,-110,-50,-119,-114,-173,-159,-163,-147,-137,-64,-356,-361,-485,-282,-432,-267,-263,-174,-131,-112,-103,-109,-304,-302,-295,-313,-308,-300,-956,-1136,-1467,-1445,-2061,-2213,-2215,-1944,-4831,-4057,-29951,-29944,-12839,-6179,-6821,-29960,-29968,-29973,-29977,-29978,-29978,-29971,-29984,-29985,-29990,-29991,-29994,-29993]} 1. e4 e5 2. Nf3 Nc6 3. Bc4 Nf6 4. Ng5 d5 5. exd5 Na5 6. Bb5+ c6 7. dxc6 bxc6 8. Qf3 Be7 {[%cal Oc8g4]} 9. Bd3 O-O 10. Nc3 h6 {White is slightly better.} 11. Nge4 Nxe4 12. Qxe4 f5 13. Qe2 {[%cal Ob2b3]} Bd6 14. b3 c5 15. Bc4+ Nxc4 16. Qxc4+ Kh7 17. Bb2 Bb7 18. Rg1 e4 19. g3 Be5 20. O-O-O Bd4 21. Rgf1 (21. Nb5 $14) 21... Qf6 $15 {[%mdl 1024] Black has compensation.} 22. Qa4 Ba6 {This pair of bishops is nice.} (22... a5 $17 {aiming for ...Bc6.} 23. Qa3 Ba6) 23. Rh1 Rfd8 (23... Bxf2 $2 24. Nxe4 Qf7 25. Nxf2 $18) (23... Rad8 $5 24. h3 Rf7 $11 (24... Bxf2 $2 25. Nxe4 fxe4 26. Bxf6 $18)) 24. h4 (24. Kb1 $11) 24... Qb6 (24... Bxf2 $2 25. Nxe4 Qf8 26. Nxf2 $18) (24... c4 $5) 25. Rh2 (25. g4 $1 $15) 25... Rd6 {Black is more active.} (25... c4 $17 26. g4 fxg4 (26... Bxf2 27. gxf5 Bd4 28. Rg2 $14)) 26. Re1 {[#]} (26. h5 $15) 26... Rad8 $1 $36 {[%cal Oc5c4][%mdl 2048] Strongly threatening ...c4! Black has strong initiative.} 27. Qa3 (27. g4 $17 Be5 (27... fxg4 28. Kb1 $17) 28. Rhh1) 27... c4 $19 28. Na4 {[#] Dodges Bc5} Bxb2+ $1 29. Qxb2 {White is weak on the light squares} Qb4 ({Black should play} 29... Qc6 $17 30. f4 exf3) 30. c3 $2 {[%mdl 8192]} (30. Qc3 $15 Qb5 31. Qxc4 Qxc4 (31... Rxd2 32. Qxb5 Bxb5 33. Nc3 $16) 32. bxc4 Bxc4 (32... Rxd2 33. Nc5 $11) 33. Nc3) 30... Qa5 31. f4 exf3 (31... Rb8 $142 {Threatens to win with ...cxb3.} 32. Qa3 cxb3 33. axb3 Rc6) 32. Qa3 (32. Rf2 $142) 32... Rg6 33. Qc5 Qxc5 34. Nxc5 cxb3 (34... Bc8 $2 35. bxc4 Rxg3 36. Rf2) 35. axb3 Be2 {[%cal Od8e8]} 36. Rg1 $2 (36. d4 $17) 36... h5 37. d4 f4 38. Ne4 Rg4 39. Rxe2 $2 (39. Ng5+ Kg6 40. Nxf3 Bxf3 41. Rf2) 39... fxe2 {[%mdl 4096] Endgame. KRR-KRN} 40. Kd2 fxg3 41. Ng5+ {[#]} Rxg5 $1 42. hxg5 {KR-KR} Re8 {...h4 is the strong threat.} 43. Ke1 h4 44. Rh1 Re4 45. Rg1 Kg6 {[%cal Oe4e3] ( -> ...Re3!)} 46. d5 Kxg5 47. d6 {Black mates.} Re6 48. d7 Rd6 49. Kxe2 Rxd7 50. Rc1 Kg4 51. Kf1 h3 52. c4 h2 {Weighted Error Value: White=1.12/Black=0.22 (precise) .  Loses game:     	White=2     	---        Mistake:       	White=7     	Black=4      Inaccurate:     	White=6     	Black=5      OK:         	White=8     	Black=11     Best:        	White=1     	Black=2      Strong:       	---       	Black=2} 0-1

[Event "45th FIDE Olympiad 2024"]
[Site "Budapest"]
[Date "2024.09.12"]
[Round "2.117"]
[White "Zambrana, Osvaldo"]
[Black "Bjerre, Jonas Buhl"]
[Result "0-1"]
[ECO "C54"]
[WhiteElo "2405"]
[BlackElo "2648"]
[Annotator "TA"]
[PlyCount "86"]
[EventDate "2024.09.05"]
[EventType "team-tourn"]
[EventCountry "HUN"]
[SourceTitle "playchess.com"]
[Source "ChessBase"]
[SourceQuality "1"]
[WhiteTeam "Bolivia"]
[BlackTeam "Denmark"]
[WhiteTeamCountry "BOL"]
[BlackTeamCountry "DEN"]
[TimeControl "40/5400+30:1800+30"]

{[%evp 11,86,13,12,19,33,16,2,14,17,6,0,13,0,0,0,0,16,0,8,0,20,2,0,-35,-37,-93,-85,-129,-103,-136,-148,-136,-133,-160,-118,-134,-113,-171,-140,-152,-155,-164,-170,-231,-216,-231,-227,-455,-234,-284,-291,-293,-282,-659,-327,-426,-406,-414,-403,-557,-547,-565,-550,-594,-573,-592,-595,-601,-584,-915,-902,-950,-911,-932,-641,-662,-652]} 1. e4 e5 2. Nf3 Nc6 3. Bc4 Bc5 4. O-O Nf6 5. d3 d6 6. c3 a6 7. a4 Ba7 8. Be3 Bxe3 9. fxe3 {The position is equal.} Ne7 10. Nbd2 Ng6 11. a5 O-O 12. Qe1 c6 13. Ba2 d5 {Inhibits Nc4.} 14. exd5 cxd5 15. e4 Be6 16. exd5 Bxd5 17. Bc4 Re8 18. Qd1 (18. Bxd5 $15 Qxd5 19. Ne4) 18... b5 {Black is more active. Black converts the advantage convincingly.} 19. Bxd5 Qxd5 20. Ne4 Nxe4 21. dxe4 Qxe4 22. Qb3 {[%cal Ob3f7]} Ra7 23. Rae1 Qg4 24. Kh1 (24. Qd5 $17) 24... Rd7 25. Nd4 Nf4 26. Qc2 f6 27. Re3 (27. Qe4 {is a better defense.} Red8 28. g3) 27... Red8 $40 {[%mdl 128] White is in trouble.} 28. Rg3 Qh5 29. h3 $2 (29. Qe4) 29... Qf7 (29... exd4 $142 30. Rxf4 d3 31. Qb3+ Qd5 (31... Kh8 32. Rd4 $15)) 30. Nf5 {[#] aiming for Nh6+.} Qc4 31. Rf2 Nd3 32. Re2 (32. Rf1) 32... g6 (32... Qf4 $142 33. c4 Qxf5 34. cxb5 Qf1+ (34... axb5 $2 35. Rf3 $19) 35. Kh2 Nf4 (35... axb5 $2 36. Rf3 $19)) 33. Rg4 Nf4 34. Rf2 {White is weak on the light squares} Kh8 35. Nh6 Qe6 {White must now prevent ...Rd1+. Black is clearly winning.} 36. Rg3 f5 37. Kh2 Nd3 38. Rf1 e4 {Strongly threatening ...f4.} 39. Qd2 f4 40. Rg5 Qe7 41. h4 Rf8 42. Qe2 Qg7 43. Ng4 h6 {Weighted Error Value: White=0.57/Black=0.35.  Mistake:       	White=5     	Black=2      Inaccurate:     	White=6     	---        OK:         	White=7     	Black=13     Best:        	---       	Black=1} 0-1